bitfinex/quotes_ETHUSD_20240825
["timestamp","ask_amount","ask_price","bid_price","bid_amount"]
[1724571070537,0.00457265,2749.9,2749.8,3.63662]
[1724571071807,0.00457265,2749.9,2749.8,7.27324]
[1724571072364,0.00457265,2749.9,2749.8,3.63662]
[1724571072560,0.00457265,2749.9,2749.8,7.27324]
[1724571075956,0.00457265,2749.9,2749.8,3.63662]
[1724571076114,0.00457265,2749.9,2749.8,7.27324]
[1724571077086,0.00457265,2749.9,2749.8,18.16249698]
[1724571077269,0.00324157,2749.9,2749.8,20.05904119]
[1724571077665,0.00324157,2749.9,2749.8,20.82260188]
[1724571077666,0.00229804,2749.9,2749.8,20.82260188]
[1724571078438,0.00229804,2749.9,2749.8,21.20438223]
[1724571078583,0.00229804,2749.9,2749.8,24.84100223]
[1724571078768,8.04e-06,2749.9,2749.8,26.70305512]
[1724571078968,8.04e-06,2749.9,2749.8,30.33967512]
[1724571079175,8.04e-06,2749.9,2749.8,30.85087799]
[1724571079521,2.4711,2751.7,2751.2,3.63477]
[1724571079702,1.356513,2751.6,2751.2,3.63477]
[1724571079867,7.46,2751.8,2751.5,3.63427]
[1724571080068,7.46,2751.8,2751.3,3.63455]
[1724571080284,11.094,2751.8,2751.1,3.6348]
[1724571080490,11.094,2751.8,2751.2,3.63468]
[1724571080699,11.094,2751.8,2751.1,3.6348]
[1724571081017,12.81023,2751.8,2751.1,3.6348]
[1724571081528,2.4345,2751.7,2750.9,3.6351]
[1724571081825,3.63432,2751.6,2750.9,7.27016]
[1724571082022,5.522225,2751.6,2750.9,7.27016]
[1724571082178,5.522225,2751.6,2751.0,3.635]
[1724571082516,1.887905,2751.6,2751.1,3.6349]
[1724571082717,1.887905,2751.6,2751.1,7.26973]
[1724571083019,1.887905,2751.6,2750.6,13.97552]
[1724571083020,5.522245,2751.6,2750.9,3.63507]
[1724571083314,5.522245,2751.6,2750.7,3.63532]
[1724571083315,3.63452,2751.4,2750.7,3.63532]
[1724571083539,2.4345,2751.3,2750.7,3.63532]
[1724571083725,2.4345,2751.3,2750.9,3.63514]
[1724571084107,2.4345,2751.3,2750.7,3.63532]
[1724571084440,2.4345,2751.3,2750.7,7.27068]
[1724571084755,3.12097645,2751.3,2750.7,3.63532]
[1724571085068,2.4345,2751.7,2751.0,3.63494]
[1724571085340,6.0687,2751.7,2751.1,3.6349]
[1724571085558,3.63425,2751.6,2751.1,3.6349]
[1724571085708,6.0687,2751.7,2751.1,3.63481]
[1724571085910,7.784975,2751.7,2751.1,3.63481]
[1724571086738,3.63427,2751.6,2751.1,3.63481]
[1724571086941,3.63427,2751.6,2750.9,7.27016]
[1724571087572,3.63427,2751.6,2751.0,3.63501]
[1724571088954,6.0693,2751.2,2750.6,6.63554]
[1724571089265,6.0693,2751.2,2750.6,3.63554]
[1724571089818,3.63492,2751.1,2750.5,3.63568]
[1724571090224,3.63492,2751.1,2750.5,3.6356]
[1724571091175,7.26994,2751.1,2750.5,3.6356]
[1724571091539,3.6352,2750.9,2750.3,14.61177]
[1724571091720,3.6352,2750.9,2750.3,10.97587]
[1724571092485,2.4345,2751.0,2750.5,3.63567]
[1724571093771,2.4345,2751.0,2750.5,7.27128]
[1724571093974,2.4345,2751.0,2750.5,3.63561]
[1724571094527,6.06956,2751.0,2750.5,3.63561]
[1724571094760,6.06956,2751.0,2750.1,3.63611]
[1724571094761,3.041456,2751.0,2750.1,3.63611]
[1724571094960,3.63525,2750.9,2750.3,3.63594]
[1724571095401,7.27052,2750.9,2750.3,3.63594]
[1724571095631,2.4345,2750.5,2749.6,2.2812]
[1724571095909,3.63588,2750.4,2749.8,3.63654]
[1724571096559,2.4345,2750.5,2749.9,3.63648]
[1724571097006,2.4345,2750.5,2750.1,3.63622]
[1724571097210,6.63535,2750.8,2750.2,3.636]
[1724571097413,10.89612836,2750.8,2750.2,3.636]
[1724571097593,3.63552,2750.7,2749.9,3.63643]
[1724571097762,3.63552,2750.7,2750.1,3.63622]
[1724571098108,3.63557,2750.6,2750.1,3.63622]
[1724571098259,7.27125,2750.6,2749.9,3.63643]
[1724571098461,3.63557,2750.6,2749.9,3.63643]
[1724571098856,4.72519984,2750.6,2749.9,3.63641]
[1724571099291,2.4345,2750.5,2749.7,3.6367]
[1724571099497,2.4345,2750.2,2749.7,3.6367]
[1724571099903,2.4345,2750.2,2749.5,3.6369]
[1724571100111,3.63646,2750.0,2749.3,3.63726]
[1724571100417,2.2993,2749.9,2749.3,3.63726]
[1724571100917,2.2993,2749.8,2749.1,3.63754]
[1724571101136,3.63698,2749.6,2749.0,3.63766]
[1724571101963,3.63698,2749.6,2749.1,3.63752]
[1724571102159,5.93599,2749.8,2749.2,3.63738]
[1724571103611,5.93599,2749.8,2749.3,3.63727]
[1724571103826,5.93599,2749.8,2749.1,3.63744]
[1724571103966,5.93599,2749.8,2749.2,3.63734]
[1724571105558,5.93599,2749.8,2749.1,3.63744]
[1724571105790,5.93599,2749.8,2749.2,3.63732]
[1724571106060,9.57274,2749.8,2749.1,3.63744]
[1724571106217,6.893232,2749.8,2749.1,3.63744]
[1724571107326,3.63689,2749.6,2749.1,3.63744]
[1724571107828,10.529972,2749.8,2749.1,7.27491]
[1724571108125,5.93599,2749.8,2749.3,3.63727]
[1724571108274,5.93599,2749.8,2749.2,3.63741]
[1724571109266,3.63676,2749.7,2749.1,3.63744]
[1724571110187,5.93599,2749.8,2749.1,3.63744]
[1724571110188,3.6369,2749.6,2749.1,3.63744]
[1724571110401,3.63676,2749.7,2749.1,7.27489]
[1724571110572,6.529589,2749.8,2749.2,3.63741]
[1724571111123,2.2993,2750.1,2749.5,3.63689]
[1724571111493,3.63637,2750.0,2749.5,3.63689]
[1724571111781,2.2993,2750.1,2749.5,3.63689]
[1724571111999,3.63636,2750.0,2749.5,3.63689]
[1724571112188,7.27281,2750.0,2749.3,7.27438]
[1724571112526,3.63636,2750.0,2749.4,3.63712]
[1724571113376,3.63657,2749.9,2749.4,3.63712]
[1724571114113,3.63657,2749.9,2749.1,5.92897]
[1724571114656,3.63664,2749.8,2749.3,3.63728]
[1724571114955,3.63664,2749.8,2749.1,5.92897]
[1724571114956,4.36394,2749.8,2749.1,3.63747]
[1724571115128,3.63696,2749.6,2749.0,3.63768]
[1724571115614,3.63696,2749.6,2749.1,3.63754]
[1724571115819,5.93569,2750.0,2749.2,3.63736]
[1724571116013,5.045628,2750.3,2749.6,3.63681]
[1724571116317,5.93569,2750.0,2749.3,3.0]
[1724571116518,3.63663,2749.8,2749.3,6.63728]
[1724571116760,5.93569,2750.0,2749.4,3.63712]
[1724571116965,3.63639,2750.0,2749.5,3.63697]
[1724571117265,2.2993,2750.3,2749.6,3.63676]
[1724571117465,7.46,2750.5,2750.0,3.63626]
[1724571117627,7.46,2750.8,2750.3,3.63584]
[1724571117959,5.93414,2751.2,2750.6,3.63548]
[1724571118266,7.637011,2751.2,2750.6,3.63548]
[1724571118426,11.271891,2751.2,2750.6,3.63548]
[1724571118643,11.271891,2751.2,2750.4,6.63578]
[1724571118644,3.63502,2751.1,2750.4,6.63575]
[1724571118958,9.56901,2751.2,2750.5,3.6356]
[1724571119157,5.93414,2751.2,2750.5,3.6356]
[1724571119706,3.635,2751.1,2750.5,3.6356]
[1724571121968,13.56799,2751.0,2750.4,3.63574]
[1724571122312,9.9329,2751.0,2750.0,3.0]
[1724571122514,9.9329,2751.0,2750.6,3.63547]
[1724571122733,2.4729,2751.0,2750.6,3.63547]
[1724571123119,2.4729,2751.0,2750.4,3.63579]
[1724571123315,7.082205,2751.0,2750.2,3.63602]
[1724571123549,3.63531,2750.8,2750.2,3.63602]
[1724571124962,6.10794,2751.0,2750.3,3.63596]
[1724571125533,3.63518,2750.9,2750.3,3.63588]
[1724571127269,3.63544,2750.7,2750.1,3.63612]
[1724571127420,3.63544,2750.7,2749.9,13.39694]
[1724571127421,3.63544,2750.7,2749.9,13.39691]
[1724571127630,3.63578,2750.5,2749.9,7.27282]
[1724571127934,6.10851,2750.6,2750.0,3.63628]
[1724571128140,2.4729,2750.6,2750.1,3.63614]
[1724571128380,2.4729,2750.6,2749.9,3.63641]
[1724571128579,3.63606,2750.3,2749.5,3.63696]
[1724571128723,2.4729,2750.2,2749.5,3.63696]
[1724571128919,2.4729,2750.2,2749.7,3.63668]
[1724571130422,3.63631,2750.1,2749.5,3.63691]
[1724571130616,3.63651,2749.9,2749.3,3.6372]
[1724571131080,3.63651,2749.9,2749.3,3.63717]
[1724571131223,2.4729,2750.0,2749.5,3.63692]
[1724571131620,11.09629,2750.1,2749.5,3.63694]
[1724571132053,3.63646,2750.0,2749.3,3.63721]
[1724571132253,3.63649,2749.9,2749.3,7.27441]
[1724571132438,2.4729,2750.0,2749.3,3.6372]
[1724571132662,2.4729,2750.0,2749.5,7.27385]
[1724571132892,7.46,2750.1,2749.6,3.63681]
[1724571133101,7.46,2750.1,2749.5,3.63697]
[1724571133397,11.09634,2750.1,2749.5,3.63697]
[1724571133949,11.09634,2750.1,2749.4,3.63708]
[1724571134150,12.453264,2750.1,2749.4,3.63708]
[1724571134408,3.63647,2750.0,2749.4,3.63708]
[1724571135060,6.10941,2749.9,2749.4,3.63708]
[1724571135252,3.63663,2749.8,2749.2,3.63735]
[1724571135777,3.63663,2749.8,2749.2,3.63734]
[1724571136151,6.10941,2749.9,2749.2,7.27467]
[1724571136355,3.63677,2749.7,2749.2,3.63733]
[1724571139193,3.63677,2749.7,2749.1,3.63749]
[1724571139399,2.4729,2749.4,2748.9,4.89700331]
[1724571139696,3.63696,2749.6,2749.0,3.63758]
[1724571140113,9.9329,2749.7,2749.1,3.63747]
[1724571140901,9.9329,2749.7,2749.2,3.63738]
[1724571141120,7.46,2749.7,2749.4,3.63715]
[1724571141767,7.46,2749.7,2749.2,3.63738]
[1724571141768,7.46,2749.7,2749.2,7.2747]
[1724571141969,7.46,2749.7,2749.2,3.63732]
[1724571142168,2.4739,2749.6,2749.2,3.63732]
[1724571143125,2.4739,2749.6,2748.8,7.27575]
[1724571143126,7.27418,2749.5,2748.8,7.27575]
[1724571143414,3.63703,2749.5,2748.8,3.63782]
[1724571143880,2.4739,2749.2,2748.7,0.34139453]
[1724571144066,3.6377,2749.0,2748.7,0.34139453]
[1724571144627,3.63765,2749.1,2748.7,0.34139453]
[1724571144949,2.4739,2749.2,2748.7,0.34139453]
[1724571145157,6.11133,2749.2,2748.7,0.34139453]
[1724571145314,3.63755,2749.1,2748.7,0.34139453]
[1724571145520,7.27522,2749.1,2748.7,0.34139453]
[1724571145868,6.11185,2748.8,2748.7,0.34139453]
[1724571146000,9.7498,2748.8,2748.7,0.34139453]
[1724571148258,6.11185,2748.8,2748.7,0.34139453]
[1724571149043,9.7498,2748.8,2748.7,0.34139453]
[1724571150054,6.11185,2748.8,2748.7,0.34139453]
[1724571150262,3.6383,2748.6,2748.3,0.1300447]
[1724571150568,7.27662,2748.6,2748.3,0.1300447]
[1724571151102,3.6383,2748.6,2748.3,0.1300447]
[1724571151403,3.63773,2749.0,2748.4,3.6384]
[1724571151559,3.63784,2748.9,2748.3,3.7686347]
[1724571151968,3.63784,2748.9,2748.3,3.7685747]
[1724571152260,6.11155,2749.1,2748.3,3.7685747]
[1724571152464,2.4739,2749.1,2748.6,3.63813]
[1724571152770,6.11111,2749.4,2748.7,3.63805]
[1724571153712,11.09694,2749.6,2749.0,3.63768]
[1724571153915,11.09694,2749.6,2749.1,3.63748]
[1724571154164,14.73396,2749.6,2749.0,3.63768]
[1724571154367,11.09694,2749.6,2749.0,3.63768]
[1724571154569,3.63704,2749.5,2749.0,3.63768]
[1724571155028,11.09694,2749.6,2749.0,3.63759]
[1724571155234,7.46,2749.6,2749.2,3.63731]
[1724571155428,7.46,2749.6,2749.0,7.27521]
[1724571155747,7.27423,2749.5,2748.8,3.63786]
[1724571156169,3.63717,2749.4,2748.8,3.63786]
[1724571156329,3.63717,2749.4,2748.8,7.27573]
[1724571156531,3.63717,2749.4,2748.8,3.63786]
[1724571156735,3.63717,2749.4,2748.8,7.2757]
[1724571157114,3.63717,2749.4,2748.9,3.63778]
[1724571158248,14.73391,2749.6,2748.9,3.63778]
[1724571158464,11.09691,2749.6,2749.0,3.63767]
[1724571159025,11.09691,2749.6,2749.1,3.63752]
[1724571159226,11.09691,2749.6,2749.2,3.63742]
[1724571159227,7.46,2749.6,2749.2,3.63742]
[1724571159819,7.46,2749.6,2748.6,5.97877]
[1724571159820,7.46,2749.6,2749.4,3.63714]
[1724571160019,11.09643,2750.0,2749.4,3.63714]
[1724571160227,7.46,2750.0,2749.9,3.63649]
[1724571160523,2.4034,2750.5,2750.0,3.63628]
[1724571160524,9.8634,2750.5,2750.0,3.63628]
[1724571160670,7.02546,2750.5,2749.9,3.63649]
[1724571160871,3.38974,2750.5,2749.9,3.63639]
[1724571161106,3.38974,2750.5,2750.0,3.63636]
[1724571161290,3.38974,2750.5,2749.9,3.63639]
[1724571161487,7.02545,2750.5,2749.9,3.63639]
[1724571161718,3.38974,2750.5,2749.9,7.27279]
[1724571162212,3.38974,2750.5,2749.9,3.63639]
[1724571162397,3.38974,2750.5,2750.0,3.63633]
[1724571163123,7.02552,2750.5,2749.8,3.63652]
[1724571163296,4.701958,2750.4,2749.9,3.63646]
[1724571163494,3.63584,2750.4,2749.9,3.63646]
[1724571164436,2.4034,2750.5,2750.0,3.63635]
[1724571164638,6.03911,2750.5,2750.0,3.63635]
[1724571165195,6.03911,2750.5,2749.8,3.63656]
[1724571165402,3.63584,2750.4,2749.8,3.63656]
[1724571166034,3.63584,2750.4,2749.9,3.63648]
[1724571167048,2.4034,2750.5,2749.9,7.27289]
[1724571167206,3.63548,2750.7,2749.8,0.07272778]
[1724571167409,3.63548,2750.7,2749.6,2.3621]
[1724571167606,3.63548,2750.7,2749.9,3.63637]
[1724571167947,3.63573,2750.5,2749.9,7.27277]
[1724571168244,2.570888,2750.7,2749.7,3.6367]
[1724571168533,3.63606,2750.3,2749.7,3.63667]
[1724571168732,3.63606,2750.3,2749.7,3.63666]
[1724571169245,7.27212,2750.3,2749.7,3.63666]
[1724571169385,7.27212,2750.3,2749.5,7.27387]
[1724571169386,6.03965,2750.1,2749.5,7.27387]
[1724571169589,6.03965,2750.1,2749.5,3.63693]
[1724571169834,2.4034,2750.1,2749.6,3.63689]
[1724571170144,2.4034,2750.1,2749.7,3.63671]
[1724571170442,2.4034,2750.1,2749.7,3.63668]
[1724571171591,3.63647,2750.0,2749.3,7.27441]
[1724571171794,3.63662,2749.9,2749.3,3.6372]
[1724571172411,2.4034,2750.0,2749.1,3.63745]
[1724571172748,2.4034,2749.5,2749.0,3.63764]
[1724571173590,2.4034,2749.5,2749.1,3.63752]
[1724571173800,3.63672,2749.8,2749.2,3.63739]
[1724571174137,2.4034,2749.8,2749.4,3.63711]
[1724571174928,2.4034,2749.8,2749.4,7.27417]
[1724571175120,3.63639,2750.0,2749.4,3.63706]
[1724571175997,5.349985,2750.0,2749.4,3.63706]
[1724571177023,9.8634,2750.1,2749.7,3.63675]
[1724571177267,7.46,2750.1,2749.7,3.63675]
[1724571178342,7.46,2750.1,2749.6,3.63687]
[1724571178513,7.46,2750.1,2749.6,7.27374]
[1724571178716,7.46,2750.1,2749.6,3.63687]
[1724571178912,7.46,2750.1,2749.6,7.27367]
[1724571179237,7.46,2750.1,2749.6,3.6368]
[1724571179745,7.46,2750.1,2749.7,3.63676]
[1724571180599,7.46,2750.1,2749.9,3.63648]
[1724571180948,7.2718,2750.4,2749.7,7.27341]
[1724571181124,7.2718,2750.4,2749.7,3.63665]
[1724571181125,3.63598,2750.3,2749.7,3.63665]
[1724571181328,3.63587,2750.4,2749.8,3.6366]
[1724571181559,7.46,2750.5,2749.9,3.63649]
[1724571181736,3.63587,2750.4,2749.9,3.63639]
[1724571181918,3.63587,2750.4,2749.8,6.05655]
[1724571182334,7.2718,2750.4,2749.8,3.63655]
[1724571182650,3.63597,2750.3,2749.7,3.63674]
[1724571182827,3.63587,2750.4,2749.7,3.63674]
[1724571183026,3.6363,2750.1,2749.5,3.63695]
[1724571183244,3.6363,2750.1,2749.6,3.63682]
[1724571183444,3.6359,2750.4,2749.8,3.6365]
[1724571183656,9.8163,2750.5,2750.1,3.63621]
[1724571183657,7.46,2750.5,2750.1,3.63621]
[1724571184064,3.63559,2750.6,2750.1,3.63621]
[1724571184206,11.0953,2750.8,2750.1,3.63612]
[1724571185117,3.6357,2750.5,2750.0,2.42]
[1724571185347,3.63596,2750.3,2749.7,6.05667]
[1724571185541,2.3563,2750.4,2749.8,3.0]
[1724571185741,2.3563,2750.4,2749.9,3.63639]
[1724571186530,2.3563,2750.4,2750.0,3.63633]
[1724571186727,2.9555,2750.4,2749.7,3.63668]
[1724571186980,3.63608,2750.3,2749.7,7.27335]
[1724571187273,7.27214,2750.3,2749.7,3.63667]
[1724571187484,5.9926,2750.1,2749.5,3.63695]
[1724571187633,5.9926,2750.1,2749.5,3.63701]
[1724571187833,6.955463,2750.1,2749.5,7.27394]
[1724571188129,3.319163,2750.1,2749.1,2.42]
[1724571188360,2.3563,2750.1,2749.8,3.63652]
[1724571193237,2.3563,2750.1,2749.7,3.63673]
[1724571194902,5.99256,2750.1,2749.6,3.63683]
[1724571195062,5.99256,2750.1,2749.5,3.63698]
[1724571195264,4.235696,2750.0,2749.5,3.63698]
[1724571195859,0.599256,2750.0,2749.5,7.27393]
[1724571196191,2.3563,2750.1,2749.8,3.63655]
[1724571196391,2.3563,2750.1,2749.8,7.2731]
[1724571196631,2.3563,2750.1,2749.8,3.63655]
[1724571197105,2.3563,2750.4,2749.9,3.6364]
[1724571197265,2.3563,2750.4,2750.1,7.2723]
[1724571197466,2.3563,2750.4,2750.1,3.63615]
[1724571198913,2.3563,2750.6,2750.1,3.63615]
[1724571199047,11.09533,2750.8,2750.1,3.63615]
[1724571199247,14.09698263,2750.8,2750.2,3.636]
[1724571199443,10.46165263,2750.8,2750.3,3.63595]
[1724571199691,14.09703263,2750.8,2750.1,7.27226]
[1724571199906,14.09703263,2750.8,2750.0,2.42]
[1724571199907,7.46,2750.8,2750.0,2.42]
[1724571200105,7.46,2750.8,2750.1,0.07272491]
[1724571200243,7.46,2750.8,2750.3,3.63588]
[1724571201248,7.46,2750.8,2750.3,3.63586]
[1724571201488,7.46,2750.8,2750.5,3.63569]
[1724571201698,7.46,2750.8,2750.4,3.63575]
[1724571202700,11.0954,2750.8,2750.2,3.63609]
[1724571202845,9.66263,2750.8,2750.0,2.42]
[1724571203046,13.29802,2750.8,2750.1,3.63614]
[1724571203713,11.09539,2750.8,2750.1,3.63612]
[1724571203905,11.09539,2750.8,2750.1,7.27226]
[1724571204053,11.09539,2750.8,2750.1,3.63612]
[1724571205408,3.63545,2750.7,2749.9,3.63645]
[1724571205701,3.63579,2750.5,2749.9,3.63645]
[1724571205846,3.63579,2750.5,2749.9,7.27284]
[1724571206049,3.63579,2750.5,2749.9,3.63639]
[1724571206607,2.3411,2750.6,2750.1,3.6361]
[1724571206806,7.46,2750.8,2750.3,3.63585]
[1724571207005,7.46,2750.8,2750.5,3.63562]
[1724571207547,9.66111,2750.8,2750.5,3.63562]
[1724571208805,9.66111,2750.8,2750.3,7.27171]
[1724571209608,2.20111,2750.8,2750.3,3.63585]
[1724571210456,5.83646,2750.8,2750.3,3.63585]
[1724571211504,2.3411,2750.6,2749.8,5.53296029]
[1724571211660,3.63551,2750.7,2749.8,3.63656]
[1724571211661,5.97696,2750.4,2749.8,3.63656]
[1724571211876,3.63599,2750.3,2749.6,3.63679]
[1724571212173,3.63599,2750.3,2749.7,3.63668]
[1724571213611,3.63599,2750.3,2749.6,3.63679]
[1724571213612,3.63599,2750.3,2749.8,3.63662]
[1724571216217,4.6570411,2750.3,2749.8,3.63662]
[1724571216431,2.3411,2750.4,2749.8,3.63653]
[1724571216946,5.97651,2750.8,2749.7,3.63672]
[1724571217234,5.97651,2750.8,2750.3,3.63596]
[1724571217235,2.3411,2750.8,2750.3,3.63596]
[1724571218210,2.938728,2750.8,2750.3,3.63596]
[1724571218415,6.574098,2750.8,2750.1,3.63611]
[1724571218812,6.574098,2750.8,2750.2,3.63607]
[1724571219023,3.63543,2750.7,2750.1,3.63611]
[1724571219247,0.6574158,2750.6,2750.1,3.63611]
[1724571219945,2.3357,2750.5,2749.9,3.63637]
[1724571220138,2.3357,2750.5,2750.0,3.63634]
[1724571220499,5.97142,2750.5,2749.7,3.63668]
[1724571220698,3.63607,2750.3,2749.7,7.27335]
[1724571221051,3.63607,2750.3,2749.8,3.63662]
[1724571221866,5.9718,2750.2,2749.7,3.63667]
[1724571222103,2.3357,2750.2,2749.7,3.63667]
[1724571223005,3.63639,2750.0,2749.4,3.63707]
[1724571223205,3.6365,2749.9,2749.1,3.16403603]
[1724571223404,4.597354,2749.9,2749.2,3.16143553]
[1724571223603,4.597354,2749.9,2749.3,1.26457691]
[1724571224320,4.597354,2749.9,2749.4,3.63712]
[1724571224678,3.63663,2749.8,2749.2,3.6374]
[1724571224876,3.63663,2749.8,2749.2,7.27474]
[1724571225192,4.6935984,2749.8,2749.2,3.63734]
[1724571225561,2.3357,2749.7,2749.2,3.63734]
[1724571225763,5.97247,2749.7,2749.0,3.63759]
[1724571226017,3.63725,2749.4,2748.8,5.53476536]
[1724571226164,4.13292472,2749.8,2748.6,6.29524139]
[1724571226165,2.3357,2749.3,2748.6,6.29524139]
[1724571226369,3.63765,2749.1,2748.4,3.63842]
[1724571226564,5.97347,2749.0,2748.4,3.63842]
[1724571227929,2.3357,2748.6,2748.3,0.1300447]
[1724571228938,3.63785,2748.9,2748.3,0.1300447]
[1724571229152,4.365394,2748.9,2748.3,0.1300447]
[1724571229439,3.63796,2748.8,2748.3,0.1300447]
[1724571229996,4.365394,2748.9,2748.3,0.1300447]
[1724571230297,3.63795,2748.8,2748.3,0.1300447]
[1724571230709,3.63809,2748.7,2748.3,0.1300447]
[1724571231059,0.363809,2748.6,2748.3,0.1300447]
[1724571231352,3.63809,2748.7,2748.3,0.1300447]
[1724571233711,4.365394,2748.9,2748.3,0.1300447]
[1724571233712,0.727544,2748.9,2748.3,0.1300447]
[1724571233892,13.4334,2749.0,2748.4,3.63835]
[1724571234093,13.4334,2749.0,2748.5,3.63834]
[1724571234375,13.4334,2749.0,2748.4,3.63844]
[1724571234701,13.4334,2749.0,2748.4,3.63838]
[1724571235064,9.7957,2749.0,2748.4,3.63838]
[1724571235197,7.46,2749.0,2748.6,3.63813]
[1724571235398,7.46,2749.0,2748.7,3.63806]
[1724571235792,7.46,2749.0,2748.6,3.63813]
[1724571236111,2.3357,2749.4,2748.9,3.63769]
[1724571236534,2.3357,2749.4,2749.0,3.63768]
[1724571237394,2.932967,2749.4,2748.7,3.63801]
[1724571237599,3.63753,2749.2,2748.5,3.63821]
[1724571237913,2.3357,2748.9,2748.4,3.63843]
[1724571239410,2.3357,2748.9,2748.4,3.63839]
[1724571239968,6.05657,2749.2,2748.6,3.63819]
[1724571240555,2.4191,2749.2,2748.6,3.6382]
[1724571240701,6.0566,2749.2,2748.6,3.6382]
[1724571240906,7.77198,2749.2,2748.6,3.6382]
[1724571241710,7.77198,2749.2,2748.6,3.63812]
[1724571243104,7.77198,2749.2,2748.7,3.63804]
[1724571244968,9.8791,2749.4,2749.1,3.63754]
[1724571245265,7.46,2749.4,2749.1,3.63754]
[1724571245410,7.46,2749.4,2748.9,3.6377]
[1724571245811,7.46,2749.4,2748.9,7.27542]
[1724571246007,7.46,2749.4,2749.0,3.63767]
[1724571246211,7.46,2749.4,2749.2,3.63739]
[1724571246440,7.46,2749.4,2749.0,3.63759]
[1724571247153,2.4191,2749.7,2749.1,3.63747]
[1724571247360,2.4191,2749.7,2749.1,7.27491]
[1724571247861,2.4191,2749.7,2749.2,3.63741]
[1724571248156,4.134351,2749.7,2749.2,3.63741]
[1724571249364,2.4191,2749.7,2749.3,7.27448]
[1724571249654,2.4191,2749.7,2749.3,3.6372]
[1724571249951,2.4191,2749.7,2749.3,7.2744]
[1724571250253,7.46,2749.8,2749.3,3.6372]
[1724571250457,12.36598255,2749.8,2749.3,3.6372]
[1724571251155,4.90598255,2749.8,2749.3,3.6372]
[1724571251564,3.63685,2749.7,2749.1,3.63749]
[1724571251767,3.63707,2749.5,2748.7,6.63804]
[1724571251909,3.63751,2749.2,2748.7,3.63804]
[1724571252108,3.63756,2749.1,2748.3,13.5192747]
[1724571252355,2.4191,2749.0,2748.5,3.63828]
[1724571252507,2.4191,2749.0,2748.5,7.27654]
[1724571252708,2.4191,2749.0,2748.5,3.63825]
[1724571252958,2.4191,2749.0,2748.5,7.27651]
[1724571253123,2.4191,2749.0,2748.5,3.63825]
[1724571253711,3.4983823,2749.0,2748.5,3.63825]
[1724571255164,3.4983823,2749.0,2748.6,3.6382]
[1724571256613,3.4983823,2749.0,2748.4,3.6384]
[1724571256614,3.63794,2748.9,2748.4,3.6384]
[1724571256979,3.63794,2748.9,2748.3,3.7685547]
[1724571256980,2.4191,2749.0,2748.5,3.63832]
[1724571257257,7.46,2749.2,2748.7,3.638]
[1724571257426,2.4191,2749.3,2748.9,3.6377]
[1724571257751,11.09691,2749.6,2748.9,3.6377]
[1724571257752,2.4191,2749.5,2748.9,3.6377]
[1724571257956,2.4191,2749.5,2748.3,0.1300447]
[1724571257957,7.46,2749.6,2749.1,3.63754]
[1724571258358,7.46,2749.6,2749.2,3.63739]
[1724571258915,7.46,2749.6,2749.1,3.63747]
[1724571259524,7.46,2749.6,2748.7,6.04869]
[1724571259525,7.46,2749.6,2748.8,3.71062529]
[1724571259860,7.46,2749.6,2749.2,3.63732]
[1724571260841,8.811573,2749.6,2749.0,3.63761]
[1724571261077,3.63703,2749.5,2748.9,3.63781]
[1724571261597,2.4923,2749.4,2748.6,3.63815]
[1724571261756,3.63758,2749.1,2748.6,3.63815]
[1724571262173,2.4923,2749.0,2748.4,3.6384]
[1724571262379,2.4923,2749.0,2748.5,3.63832]
[1724571262896,6.13007,2749.0,2748.5,3.63832]
[1724571263262,2.4923,2749.0,2748.5,3.63832]
[1724571263652,6.12999,2749.0,2748.3,7.4071547]
[1724571263964,4.6509528,2748.9,2748.3,3.7685747]
[1724571264180,4.6509528,2748.9,2748.3,0.1300447]
[1724571264395,8.2888728,2748.9,2748.3,3.7686347]
[1724571264750,4.6509528,2748.9,2748.3,3.7686347]
[1724571266943,3.63782,2748.9,2748.4,3.63845]
[1724571267962,3.63762,2749.1,2748.5,3.63832]
[1724571268996,3.63762,2749.1,2748.5,3.63825]
[1724571269164,3.63762,2749.1,2748.5,7.27652]
[1724571269360,3.63762,2749.1,2748.6,3.63819]
[1724571269361,5.360345,2749.1,2748.6,3.63819]
[1724571269989,5.360345,2749.1,2748.5,3.63825]
[1724571270191,5.360345,2749.1,2748.5,7.27651]
[1724571270489,13.58963,2749.3,2748.4,2.476]
[1724571270689,17.22702,2749.3,2748.7,3.63795]
[1724571270989,3.63756,2749.1,2748.5,3.63827]
[1724571271393,3.63769,2749.0,2748.4,3.6384]
[1724571271699,3.63769,2749.0,2748.3,0.1300447]
[1724571271700,3.63795,2748.8,2748.3,0.1300447]
[1724571271864,7.27599,2748.8,2748.3,0.1300447]
[1724571272061,2.4923,2748.7,2748.3,0.1300447]
[1724571273588,6.13038,2748.7,2748.3,0.1300447]
[1724571273977,3.63833,2748.6,2748.3,0.1200447]
[1724571274295,8.253473,2748.6,2748.3,0.1200447]
[1724571275191,4.615143,2748.6,2748.3,0.1200447]
[1724571282575,3.63837,2748.5,2748.3,0.1200447]
[1724571283222,3.63848,2748.4,2748.3,0.1200447]
[1724571283445,6.8437423,2748.4,2748.3,0.1200447]
[1724571283740,6.01838,2748.4,2748.3,0.1200447]
[1724571283901,2.3799,2748.4,2748.3,0.1200447]
[1724571284960,3.63828,2748.6,2748.3,0.1200447]
[1724571285117,2.3799,2748.7,2748.3,0.1200447]
[1724571286027,6.01798,2748.7,2748.3,0.1200447]